{"text_format":"1","workbook":"xlsx","n_sheets":1,"sheets":["CONCEPTO FAVORABLE"],"not_rendered":{"charts":0,"images":1,"macros":1,"external_links":0,"defined_names":3,"comments":1,"pivot_tables":0},"unopened":[],"bounds":{"document_bytes":16777216,"sheet_cells":100000,"rows_first":2000,"rows_last":500,"rows_between":2000,"halvings":0,"cell_chars":16384,"cell_head_chars":4096},"cells_cut":0,"cells_raw":0,"read":"whole","date_system":"1900"}

{"sheet":"CONCEPTO FAVORABLE","index":0,"n_rows":28,"n_cols":8,"rows_kept":28,"cut":false,"hidden":false,"merged":[[5,1,5,8],[6,1,6,8],[7,1,7,8],[8,1,8,8],[16,1,16,8],[9,7,9,8],[10,7,10,8],[11,7,11,8],[12,7,12,8],[13,7,13,8],[14,7,14,8],[25,1,25,4],[21,1,22,4],[24,1,24,4],[18,1,18,8],[20,4,20,8],[20,1,20,2],[23,1,23,5],[19,1,19,8],[4,1,4,7],[1,1,3,2],[1,3,1,8],[2,3,2,8],[3,5,3,6],[3,7,3,8]]}
[]
[null,null,null,"PROCESO DE GESTION DE TALENTO HUMANO"]
[null,null,null,"FORMATO CONCEPTO FAVORABLE DE VINCULACIÓN DE PROFESOR DE HORA CÁTEDRA"]
[null,null,null,"Código: FO-GTH-29","Versión: 06","Fecha de aprobación: 18/02/2022",null,"Página: 1 de 1"]
[]
[null,"EN CALIDAD DE DIRECTOR DE PROGRAMA"]
[null,"CERTIFICO"]
[null,"Que los docentes relacionados a continuacion, cumplieron con las horas asignadas como hora catedra para el ____ semestre de 20___, en el programa. Igualmente hizo entrega de:(diario de clases   X  , planilla de asistencia de estudiantes X , entrega de notas:   SI  ___  NO ___ , quedando a paz y salvo para este mes."]
[]
[null,"No. DE CONTRATO ","CEDULA ","NOMBRE ","CURSOS ","CODIGO ","HORAS","OBSERVACIONES"]
[null,null,{"$f":"IFERROR(VLOOKUP(B11,DATOS,2,FALSE),\"\")","v":""},{"$f":"IFERROR(VLOOKUP(B11,DATOS,3,FALSE),\"\")","v":""},{"$f":"IFERROR(VLOOKUP(B11,DATOS,37,FALSE),\"\")","v":""},{"$f":"IFERROR(VLOOKUP(B11,DATOS,24,FALSE),\"\")","v":""}]
[null,null,"",{"$f":"IFERROR(VLOOKUP(B12,DATOS,3,FALSE),\"\")","v":""},"",{"$f":"IFERROR(VLOOKUP(B12,DATOS,24,FALSE),\"\")","v":""}]
[null,null,"","","",""]
[null,null,"","","",""]
[null,null,"","","",""]
[]
[null,"OBSERVACIONES:"]
[]
[null,"Una vez verificada la información, se constató que el profesor catedrático, cumplió con el objeto estipulado en el contrato, dentro de los términos establecidos, dando cumplimiento a todas sus obligaciones."]
[]
[null,"Dada en Villavicencio,"]
[]
[]
[null,"FIRMA"]
[]
[null,"Director de Programa "]
[]
[null,"Elaboro: (Nombre de la persona de apoyo del programa)"]